{"text_format":"1","workbook":"xlsx","n_sheets":6,"sheets":["APIトークン","在庫一覧","納品一覧","納品書","納品書作成","取引先一覧"],"not_rendered":{"charts":0,"images":1,"macros":1,"external_links":0,"defined_names":1,"comments":0,"pivot_tables":0},"unopened":[],"bounds":{"document_bytes":16777216,"sheet_cells":100000,"rows_first":2000,"rows_last":500,"rows_between":2000,"halvings":0,"cell_chars":16384,"cell_head_chars":4096},"cells_cut":0,"cells_raw":0,"read":"whole","date_system":"1900"}

{"sheet":"APIトークン","index":0,"n_rows":1,"n_cols":1,"rows_kept":1,"cut":false,"hidden":false,"merged":[]}
["APIトークン"]

{"sheet":"在庫一覧","index":1,"n_rows":5,"n_cols":4,"rows_kept":5,"cut":false,"hidden":false,"merged":[]}
["在庫データ一覧"]
[]
[]
["ID","物品名","数量","型式"]
[17485026,"PCR（サーマルサイクラー）",20,"PCR/1250"]

{"sheet":"納品一覧","index":2,"n_rows":5,"n_cols":5,"rows_kept":5,"cut":false,"hidden":false,"merged":[]}
["納品データ一覧"]
[]
[]
["状態","納品日","取引先","対象物品","合計金額"]
["納品済み","2020-04-10","株式会社テスト倉庫","PCR（サーマルサイクラー）,",10000]

{"sheet":"納品書","index":3,"n_rows":35,"n_cols":8,"rows_kept":35,"cut":false,"hidden":false,"merged":[[14,0,14,4],[4,0,4,3]]}
["納　品　書"]
[null,null,null,null,null,null,"納品No.",66]
[null,null,null,null,null,null,"納品日","2020-04-10"]
[null,null,null,{"$f":"IFERROR(VLOOKUP(A$4, 取引先一覧!A:D, 2, FALSE), \"\")","v":""}]
[{"$f":"IFERROR(VLOOKUP(A$4,取引先一覧!A:D,3,FALSE),\"\")","v":""}]
[{"$f":"IFERROR(VLOOKUP(A$4, 取引先一覧!A:D, 4, FALSE), \"\")","v":""}]
[]
[null,null,null,null,null,"株式会社ＺＡＩＣＯ"]
[null,null,null,null,null,"〒992-0021\n"]
[null,null,null,null,null,"山形県米沢市大字花沢331番地"]
[]
[]
[]
[]
["品名",null,null,null,null,"数量","単価","金額"]
["PCR（サーマルサイクラー） PCR/1250",null,null,null,null,10,1000,{"$f":"F16*G16","v":10000}]
[null,null,null,null,null,null,null,0]
[null,null,null,null,null,null,null,0]
[null,null,null,null,null,null,null,0]
[null,null,null,null,null,null,null,0]
[null,null,null,null,null,null,null,0]
[null,null,null,null,null,null,null,0]
[null,null,null,null,null,null,null,0]
[null,null,null,null,null,null,null,0]
[null,null,null,null,null,null,null,0]
[null,null,null,null,null,null,null,0]
[null,null,null,null,null,null,null,0]
[null,null,null,null,null,null,null,{"$f":"F28*G28","v":0}]
[null,null,null,null,null,null,null,0]
[null,null,null,null,null,null,null,0]
[null,null,null,null,null,null,null,0]
[null,null,null,null,null,null,null,0]
[null,null,null,null,null,null,null,0]
[null,null,null,null,null,null,null,0]
[null,null,null,null,null,null,null,0]

{"sheet":"納品書作成","index":4,"n_rows":1,"n_cols":1,"rows_kept":1,"cut":false,"hidden":false,"merged":[]}
["納品書を出力したい対象データを下記から選び、「納品書作成」を押してください。"]

{"sheet":"取引先一覧","index":5,"n_rows":3,"n_cols":4,"rows_kept":3,"cut":false,"hidden":false,"merged":[]}
["取引先一覧",null,null,"※ZAICOとは連携していません"]
["取引先名","敬称","郵便番号","住所"]
["株式会社テスト倉庫","御中",9920021,"山形県米沢市花沢３３１"]